bitfinex-derivatives/quotes_BTCF0:USTF0_20250830
["timestamp","ask_amount","ask_price","bid_price","bid_amount"]
[1756522192417,0.18932335,108040.0,108030.0,1.03626246]
[1756522192618,1.03920335,108040.0,108030.0,1.03626246]
[1756522192815,0.18932335,108040.0,108030.0,1.03626246]
[1756522194520,1.03916335,108040.0,108030.0,1.03626246]
[1756522196420,1.03888335,108040.0,108030.0,1.03626246]
[1756522199220,1.03888335,108040.0,108030.0,0.78626246]
[1756522200320,0.18932335,108040.0,108030.0,0.78626246]
[1756522200623,1.03824335,108040.0,108030.0,1.14374492]
[1756522200922,1.03824335,108040.0,108030.0,0.78626246]
[1756522201226,1.03824335,108040.0,108030.0,1.14374492]
[1756522201920,1.03824335,108040.0,108030.0,0.78626246]
[1756522202519,1.03872335,108040.0,108030.0,0.78626246]
[1756522203216,1.03872335,108040.0,108030.0,0.42878]
[1756522203416,1.03872335,108040.0,108030.0,0.78626246]
[1756522203733,1.03872335,108040.0,108030.0,0.42878]
[1756522204022,1.03872335,108040.0,108030.0,0.36210246]
[1756522204023,2.36448827,108040.0,108030.0,0.36210246]
[1756522204228,2.00700581,108040.0,108030.0,0.36210246]
[1756522204422,2.00700581,108040.0,108030.0,0.38761246]
[1756522205023,2.00900581,108040.0,108030.0,0.38761246]
[1756522205522,2.01200581,108040.0,108030.0,0.36210246]
[1756522206122,2.01100581,108040.0,108030.0,0.38761246]
[1756522207425,2.01000581,108040.0,108030.0,0.38761246]
[1756522207932,2.01000581,108040.0,108030.0,0.36210246]
[1756522208331,2.36748827,108040.0,108030.0,0.36210246]
[1756522208528,2.36748827,108040.0,108030.0,0.00462]
[1756522208736,2.36748827,108040.0,108030.0,0.36210246]
[1756522209834,2.01000581,108040.0,108030.0,0.36210246]
[1756522210227,2.00996581,108040.0,108030.0,0.38761246]
[1756522210434,1.65248335,108040.0,108030.0,0.38761246]
[1756522210633,2.00980581,108040.0,108030.0,0.42909246]
[1756522210832,2.00980581,108040.0,108030.0,0.38761246]
[1756522212431,2.00980581,108040.0,108030.0,0.42909246]
[1756522213937,2.00980581,108040.0,108030.0,0.38761246]
[1756522214725,2.36728827,108040.0,108030.0,0.00462]
[1756522215226,2.36728827,108040.0,108030.0,0.36210246]
[1756522217337,2.36728827,108040.0,108030.0,0.38761246]
[1756522218854,2.00980581,108040.0,108030.0,0.42909246]
[1756522219154,2.00984581,108040.0,108030.0,0.42909246]
[1756522222645,1.98653218,108040.0,108030.0,0.42909246]
[1756522222847,2.0098709,108040.0,108030.0,0.42909246]
[1756522225757,2.0093909,108040.0,108030.0,0.42909246]
[1756522230357,1.65134844,108040.0,108030.0,0.07161]
[1756522230562,2.0088309,108040.0,108030.0,0.07161]
[1756522230765,2.0088309,108040.0,108030.0,0.42909246]
[1756522237166,2.0088309,108040.0,108030.0,0.03013]
[1756522237370,2.0088309,108040.0,108030.0,0.42756246]
[1756522240874,1.65134844,108040.0,108030.0,0.42756246]
[1756522241979,0.80314844,108040.0,108030.0,0.42756246]
[1756522242176,1.65166844,108040.0,108030.0,0.42756246]
[1756522250371,2.0091509,108040.0,108030.0,0.00462]
[1756522250577,2.0091509,108040.0,108030.0,0.36210246]
[1756522254081,2.0091509,108040.0,108030.0,0.00462]
[1756522254281,2.0091509,108040.0,108030.0,0.36210246]
[1756522254474,2.0091509,108040.0,108030.0,0.38790246]
[1756522255482,1.1606309,108040.0,108030.0,0.38790246]
[1756522255681,2.0087509,108040.0,108030.0,0.42785246]
[1756522256177,1.83631692,108040.0,108030.0,0.42785246]
[1756522259286,1.59274118,108040.0,108030.0,0.42785246]
[1756522259685,1.66727637,108040.0,108030.0,0.42785246]
[1756522261286,1.71375111,108040.0,108030.0,0.42785246]
[1756522264689,1.71375111,108040.0,108030.0,0.38790246]
[1756522264882,2.07455111,108040.0,108030.0,0.38790246]
[1756522265486,2.07451111,108040.0,108030.0,0.38790246]
[1756522266289,2.07451111,108040.0,108010.0,0.02371963]
[1756522266290,2.43199357,108040.0,108010.0,0.02371963]
[1756522266493,0.05564,108010.0,108000.0,0.76590673]
[1756522266692,0.05564,108010.0,108000.0,1.12338919]
[1756522268393,0.05564,108010.0,108000.0,1.16474919]
[1756522269595,0.05564,108010.0,108000.0,1.16374919]
[1756522269989,0.4254,108020.0,108010.0,0.0662]
[1756522270195,1.29792501,108020.0,108010.0,0.78116492]
[1756522274399,0.44868501,108020.0,108010.0,0.78116492]
[1756522274595,1.29832501,108020.0,108010.0,0.78116492]
[1756522274893,0.44868501,108020.0,108010.0,0.78116492]
[1756522275101,0.02328501,108020.0,108010.0,1.23453642]
[1756522275398,0.02328501,108020.0,108010.0,2.33453642]
[1756522276407,0.0646,108030.0,108020.0,0.0662]
[1756522276700,0.0646,108030.0,108020.0,0.78116492]
[1756522278094,0.0676,108030.0,108020.0,0.78116492]
[1756522284400,0.0676,108030.0,108020.0,0.0662]
[1756522284599,0.0676,108030.0,108020.0,0.78116492]
[1756522284796,0.45167551,108030.0,108020.0,0.78116492]
[1756522286302,0.27827601,108030.0,108020.0,0.78116492]
[1756522288406,0.63575847,108030.0,108020.0,0.42368246]
[1756522291012,0.27827601,108030.0,108020.0,0.78116492]
[1756522291310,1.12691601,108030.0,108020.0,0.78116492]
[1756522293613,1.48439847,108030.0,108020.0,0.78116492]
[1756522293813,1.12691601,108030.0,108020.0,0.78116492]
[1756522294212,1.12691601,108030.0,108020.0,0.0662]
[1756522294413,1.12691601,108030.0,108020.0,0.78116492]
[1756522296214,1.12663601,108030.0,108020.0,0.78116492]
[1756522296415,0.27827601,108030.0,108020.0,0.78116492]
[1756522296614,1.12651601,108030.0,108020.0,0.78116492]
[1756522300615,1.12651601,108030.0,108020.0,0.0662]
[1756522300816,1.12651601,108030.0,108020.0,0.78116492]
[1756522306922,0.84824,108030.0,108020.0,0.78116492]
[1756522307327,0.83929239,108040.0,108020.0,0.74180492]
[1756522307520,0.86247891,108040.0,108030.0,0.42174246]
[1756522307716,1.71071891,108040.0,108030.0,0.42174246]
[1756522307914,1.74152891,108040.0,108030.0,0.34037246]
[1756522308426,0.89328891,108040.0,108030.0,0.34037246]
[1756522308726,1.74352891,108040.0,108030.0,0.34037246]
[1756522309227,1.74352891,108040.0,108030.0,0.38448246]
[1756522309428,0.03081,108030.0,108020.0,0.027]
[1756522309627,0.41147898,108030.0,108020.0,0.38448246]
[1756522309830,0.41147898,108030.0,108020.0,0.74196492]
[1756522310028,0.41147898,108030.0,108020.0,0.77922492]
[1756522311231,0.41247898,108030.0,108020.0,0.77922492]
[1756522311732,0.41347898,108030.0,108020.0,0.77922492]
[1756522314430,0.23960892,108030.0,108020.0,0.77922492]
[1756522315648,0.002,108030.0,108020.0,0.77922492]
[1756522317044,0.35948246,108030.0,108020.0,0.77922492]
[1756522320353,1.20768246,108030.0,108020.0,0.77922492]
[1756522324452,0.35948246,108030.0,108020.0,0.77922492]
[1756522324654,1.20764246,108030.0,108020.0,0.77922492]
[1756522325946,0.85016,108030.0,108020.0,0.77922492]
[1756522326953,0.002,108030.0,108020.0,0.77922492]
[1756522327149,0.85016,108030.0,108020.0,0.77922492]
[1756522328353,0.85016,108030.0,108020.0,1.14002492]
[1756522328552,0.002,108030.0,108020.0,1.14002492]
[1756522328754,0.002,108030.0,108020.0,1.39002492]
[1756522329754,0.001,108030.0,108020.0,1.39002492]
[1756522329958,0.96916993,108040.0,108030.0,0.06527]
[1756522330258,1.34971658,108040.0,108030.0,0.42275246]
[1756522330760,0.99223412,108040.0,108030.0,0.42275246]
[1756522331057,1.34971658,108040.0,108030.0,0.42275246]
[1756522331361,1.34971658,108040.0,108030.0,0.06527]
[1756522331553,1.34971658,108040.0,108030.0,0.42275246]
[1756522331958,1.35071658,108040.0,108030.0,0.42275246]
[1756522333552,1.35171658,108040.0,108030.0,0.42275246]
[1756522333758,1.71251658,108040.0,108030.0,0.42275246]
[1756522334358,1.71251658,108040.0,108030.0,0.06527]
[1756522334559,1.71251658,108040.0,108030.0,0.42275246]
[1756522336957,1.35503412,108040.0,108030.0,0.42275246]
[1756522337162,1.71251658,108040.0,108030.0,0.42275246]
[1756522337565,1.35171658,108040.0,108030.0,0.42275246]
[1756522337862,1.71251658,108040.0,108030.0,0.42275246]
[1756522340664,1.71251658,108040.0,108030.0,0.06527]
[1756522340860,1.71251658,108040.0,108030.0,0.42275246]
[1756522341072,1.71251658,108040.0,108030.0,0.06527]
[1756522341365,1.71251658,108040.0,108030.0,0.42275246]
[1756522347670,0.86435658,108040.0,108030.0,0.42275246]
[1756522347968,1.71235658,108040.0,108030.0,0.42275246]
[1756522350868,1.35487412,108040.0,108030.0,0.06527]
[1756522351172,1.71235658,108040.0,108030.0,0.42275246]
[1756522355174,2.06983904,108040.0,108030.0,0.02651]
[1756522355372,2.06983904,108040.0,108030.0,0.38399246]
[1756522356573,2.06983904,108040.0,108020.0,0.39878246]
[1756522356875,0.35748246,108030.0,108020.0,0.42468246]
[1756522357069,0.38054665,108030.0,108020.0,0.42468246]
[1756522358070,0.38054665,108030.0,108020.0,0.0259]
[1756522358277,0.05284,108010.0,107990.0,0.7116702]
[1756522358577,0.81494391,108010.0,108000.0,0.74086492]
[1756522358877,0.45746145,108010.0,108000.0,0.74086492]
[1756522359074,0.45746145,108010.0,108000.0,0.99086492]
[1756522359872,0.81494391,108010.0,108000.0,0.0259]
[1756522360077,0.81494391,108010.0,108000.0,0.38338246]
[1756522360679,0.81494391,108010.0,108000.0,0.42468246]
[1756522362487,0.81494391,108010.0,108000.0,0.0259]
[1756522362780,0.06851,108000.0,107990.0,0.01901755]
[1756522362973,2.01528014,108000.0,107990.0,0.01901755]
[1756522363175,0.06851,107990.0,107980.0,0.38338246]
[1756522363377,0.80763298,107990.0,107980.0,0.0259]
[1756522363584,0.80763298,107990.0,107980.0,0.38338246]
[1756522363778,0.80763298,107990.0,107980.0,0.0259]
[1756522363985,0.83066126,107990.0,107980.0,0.63338246]
[1756522364380,0.80763298,107990.0,107980.0,0.63338246]
[1756522364580,0.83065017,107990.0,107980.0,0.63638246]
[1756522364775,0.83065017,107990.0,107980.0,0.67968246]
[1756522364982,1.32112771,107990.0,107980.0,0.67968246]
[1756522365189,1.67861017,107990.0,107980.0,0.67968246]
[1756522365388,1.29811052,107990.0,107980.0,0.68007092]
[1756522366087,0.45015052,107990.0,107980.0,0.68007092]
[1756522366288,1.29811052,107990.0,107980.0,0.68007092]
[1756522367992,1.65598144,107990.0,107980.0,0.005]
[1756522368579,1.65598144,107990.0,107980.0,0.0309]
[1756522369288,1.65598144,107990.0,107980.0,0.005]
[1756522369590,1.90598144,107990.0,107980.0,0.005]
[1756522369778,0.70015052,107990.0,107980.0,0.0722]
[1756522369979,1.90602144,107990.0,107980.0,0.0309]
[1756522371090,1.54815052,107990.0,107980.0,0.0309]
[1756522371278,1.90602144,107990.0,107980.0,0.0309]
[1756522371683,1.90606144,107990.0,107980.0,0.0309]
[1756522371993,1.90606144,107990.0,107980.0,0.0722]
[1756522372290,0.45015052,107990.0,107980.0,0.43007092]
[1756522372481,1.29823052,107990.0,107980.0,0.43007092]
[1756522372885,0.45015052,107990.0,107980.0,0.43007092]
[1756522373080,1.29823052,107990.0,107980.0,0.43007092]
[1756522373490,0.45015052,107990.0,107980.0,0.43007092]
[1756522373693,1.29823052,107990.0,107980.0,0.43007092]
[1756522377688,1.29823052,107990.0,107980.0,0.4489232]
[1756522378593,0.93743052,107990.0,107980.0,0.4489232]
[1756522379894,0.08935052,107990.0,107980.0,0.7915203]
[1756522380291,0.08935052,107990.0,107980.0,0.6989232]
[1756522381796,0.08935052,107990.0,107980.0,0.09105228]
[1756522381991,0.08935052,107990.0,107980.0,0.4489232]
[1756522382797,0.45015052,107990.0,107980.0,0.4489232]
[1756522383692,0.08935052,107990.0,107980.0,0.4489232]
[1756522383903,0.04821052,107990.0,107980.0,1.1523203]
[1756522384195,0.02084052,107990.0,107980.0,1.1523203]
[1756522387007,0.89580623,108010.0,108000.0,0.02655]
[1756522387305,0.89580623,108010.0,108000.0,0.86576174]
[1756522387306,0.08823623,108010.0,108000.0,0.86576174]
[1756522387604,0.08823623,108010.0,108000.0,1.22656174]
[1756522388592,0.08823623,108010.0,108000.0,0.86869082]
[1756522389006,0.08823623,108010.0,108000.0,1.22656174]
[1756522389496,0.08823623,108010.0,108000.0,0.86869082]
[1756522389800,0.08823623,108010.0,108000.0,0.42124]
[1756522390006,0.08823623,108010.0,108000.0,0.77911092]
[1756522391505,0.08823623,108010.0,108000.0,0.77811092]
[1756522391708,0.08823623,108010.0,108000.0,0.77911092]
[1756522393813,0.08823623,108010.0,108000.0,0.42124]
[1756522394007,0.08823623,108010.0,108000.0,0.41831092]
[1756522394414,0.04772623,108010.0,108000.0,0.41831092]
[1756522394908,0.04772623,108010.0,108000.0,1.13698184]
[1756522395913,0.08823623,108010.0,108000.0,0.77911092]
[1756522396115,0.08823623,108010.0,108000.0,0.77611092]
[1756522396313,0.08823623,108010.0,108000.0,0.77811092]
[1756522396608,0.08823623,108010.0,108000.0,0.42024]
[1756522396813,0.08823623,108010.0,108000.0,0.77811092]
[1756522397410,0.08823623,108010.0,108000.0,0.42024]
[1756522397610,0.08823623,108010.0,108000.0,0.77911092]
[1756522398612,0.08823623,108010.0,108000.0,0.42124]
[1756522398813,0.08823623,108010.0,108000.0,0.77911092]
[1756522406322,0.11129247,108010.0,108000.0,0.77911092]
[1756522407722,0.11129247,108010.0,108000.0,0.41831092]
[1756522407923,0.07078247,108010.0,108000.0,0.77911092]
[1756522408429,0.11129247,108010.0,108000.0,0.77911092]
[1756522410029,0.11129247,108010.0,108000.0,0.42124]
[1756522410224,0.47209247,108010.0,108000.0,0.06044]
[1756522410428,0.47209247,108010.0,108000.0,0.41831092]
[1756522410729,0.33610068,108010.0,108000.0,0.41831092]
[1756522411629,0.0204333,108010.0,108000.0,0.77811092]
[1756522412424,0.0204333,108010.0,108000.0,0.77611092]
[1756522412619,0.0476033,108010.0,108000.0,0.77611092]
[1756522413424,0.0882333,108010.0,108000.0,0.77611092]
[1756522414328,0.0882333,108010.0,108000.0,0.41531092]
[1756522415029,0.0882333,108010.0,108000.0,0.05744]
[1756522415332,0.0882333,108010.0,108000.0,0.41531092]
[1756522417235,0.0882333,108010.0,108000.0,0.05744]
[1756522417531,0.0882333,108010.0,108000.0,0.41531092]
[1756522419932,0.0476033,108010.0,108000.0,0.41531092]
[1756522421233,0.0882333,108010.0,108000.0,0.05744]
[1756522421434,0.0882333,108010.0,108000.0,0.41531092]
[1756522423031,0.0882333,108010.0,108000.0,0.05744]
[1756522423329,0.0882333,108010.0,108000.0,0.41531092]
[1756522423537,0.44610422,108010.0,108000.0,0.05744]
[1756522423737,0.44610422,108010.0,108000.0,0.41531092]
[1756522423937,0.44610422,108010.0,108000.0,0.05744]
[1756522425233,0.80690422,108010.0,108000.0,0.05744]
[1756522426330,0.4490333,108010.0,108000.0,0.05744]
[1756522426529,0.80690422,108010.0,108000.0,0.05744]
[1756522426735,1.05690422,108010.0,108000.0,0.05744]
[1756522426940,1.05690422,108010.0,108000.0,0.02655]
[1756522427332,0.0678,108000.0,107990.0,0.05914122]
[1756522427631,1.66584229,108000.0,107990.0,0.02672]
[1756522428031,1.62521229,108000.0,107980.0,0.39855092]
[1756522428341,0.44889467,107990.0,107980.0,0.42527092]
[1756522429432,0.44889467,107990.0,107980.0,0.0674]
[1756522429740,0.44889467,107990.0,107980.0,0.0704]
[1756522430141,0.44889467,107990.0,107980.0,0.0724]
[1756522430441,1.30505467,107990.0,107980.0,0.0724]
[1756522430641,1.30505467,107990.0,107980.0,0.43027092]
[1756522430843,1.30505467,107990.0,107980.0,0.42827092]
[1756522431038,1.30505467,107990.0,107980.0,0.43027092]
[1756522433045,0.44889467,107990.0,107980.0,0.43027092]
[1756522433340,0.94383675,107990.0,107980.0,0.43027092]
[1756522433541,0.08807675,107990.0,107980.0,0.43027092]
[1756522433737,0.04744675,107990.0,107980.0,0.79107092]
[1756522435746,0.08807675,107990.0,107980.0,0.4332]
[1756522435948,0.04744675,107990.0,107980.0,0.79107092]
[1756522436142,0.08807675,107990.0,107980.0,0.79107092]
[1756522436441,0.08807675,107990.0,107980.0,0.4332]
[1756522436647,0.08807675,107990.0,107980.0,0.79107092]
[1756522437748,0.08807675,107990.0,107980.0,0.4332]
[1756522437949,0.08807675,107990.0,107980.0,0.79107092]
[1756522438445,0.04744675,107990.0,107980.0,0.79107092]
[1756522439047,0.02027675,107990.0,107980.0,0.79107092]
[1756522439750,0.04744675,107990.0,107980.0,0.79107092]
[1756522441149,0.02027675,107990.0,107980.0,1.13366782]
[1756522446353,0.02027675,107990.0,107980.0,1.89475092]
[1756522446553,0.05825675,107990.0,107980.0,1.89475092]
[1756522446753,0.02027675,107990.0,107980.0,1.89475092]
[1756522449162,0.02027675,107990.0,107980.0,1.04107092]
[1756522449361,0.02027675,107990.0,107980.0,1.89435092]
[1756522450163,0.02027675,107990.0,107980.0,1.04107092]
[1756522450358,0.02027675,107990.0,107980.0,1.89407092]
[1756522453360,0.02027675,107990.0,107980.0,1.04107092]
[1756522453565,0.02027675,107990.0,107980.0,1.89371092]
[1756522454762,0.02027675,107990.0,107980.0,1.04107092]
[1756522454966,0.02027675,107990.0,107980.0,1.89331092]
[1756522456669,0.02027675,107990.0,107980.0,1.04107092]
[1756522456972,0.02027675,107990.0,107980.0,1.89303092]
[1756522458170,0.02027675,107990.0,107980.0,1.04107092]
[1756522458371,0.02027675,107990.0,107980.0,1.89283092]
[1756522460163,0.02027675,107990.0,107980.0,0.6832]
[1756522460372,0.08436675,107990.0,107980.0,1.28464]
[1756522460670,0.08436675,107990.0,107980.0,1.28183092]
[1756522462679,0.08436675,107990.0,107980.0,0.43027092]
[1756522462869,0.08436675,107990.0,107980.0,1.28175092]
[1756522463778,0.08436675,107990.0,107980.0,0.43027092]
[1756522464075,0.08436675,107990.0,107980.0,1.28159092]
[1756522464669,0.62420613,108000.0,107980.0,1.28159092]
[1756522464867,0.02611,107990.0,107980.0,1.24091092]
[1756522465075,0.04674046,107990.0,107980.0,1.24091092]
[1756522465374,0.04674046,107990.0,107980.0,1.28175092]
[1756522466972,0.60637436,108000.0,107990.0,0.06718]
[1756522467169,0.62936351,108000.0,107990.0,0.06718]
[1756522468075,0.62936351,108000.0,107990.0,0.06918]
[1756522468376,0.62936351,108000.0,107990.0,0.07018]
[1756522469377,0.62936351,108000.0,107990.0,0.08872494]
[1756522471279,0.62931492,108000.0,107990.0,0.44654727]
[1756522472777,0.62931492,108000.0,107990.0,0.08872494]
[1756522472976,0.62931492,108000.0,107990.0,0.44654727]
[1756522474679,1.23713725,108000.0,107990.0,0.02934]
[1756522477071,1.23713725,108000.0,107990.0,0.003]
[1756522477274,1.23731829,108000.0,107990.0,0.003]
[1756522477478,0.87940544,108000.0,107990.0,0.003]
[1756522479479,0.52149259,108000.0,107990.0,0.03042]
[1756522479680,1.37169259,108000.0,107990.0,0.06913]
[1756522479884,1.72960544,108000.0,107990.0,0.06913]
[1756522483384,1.73060544,108000.0,107990.0,0.06713]
[1756522483880,1.73060544,108000.0,107980.0,0.39951]
[1756522483881,0.00913,107990.0,107980.0,0.39951]
[1756522484083,0.78554626,107990.0,107980.0,0.38822]
[1756522484385,0.78554626,107990.0,107980.0,0.42693]
[1756522485086,1.64074626,107990.0,107980.0,0.42693]
[1756522485282,1.64058626,107990.0,107980.0,0.42693]
[1756522485482,1.64258626,107990.0,107980.0,0.42693]
[1756522485683,1.28467341,107990.0,107980.0,0.78484285]
[1756522486889,1.28467341,107990.0,107980.0,0.42693]
[1756522487184,1.28467341,107990.0,107980.0,0.78484285]
[1756522488783,1.64258626,107990.0,107980.0,0.42693]
[1756522489487,1.28467341,107990.0,107980.0,0.42693]
[1756522489780,1.64258626,107990.0,107980.0,0.02742]
[1756522489977,0.01461,107980.0,107960.0,0.6834734]
[1756522490183,0.73332285,107980.0,107970.0,0.02742]
[1756522490683,0.77394285,107980.0,107970.0,0.02742]
[1756522491080,0.79731999,107980.0,107970.0,0.02742]
[1756522491286,0.87080778,107980.0,107970.0,0.02742]
[1756522492085,0.87080778,107980.0,107970.0,0.06613]
[1756522493784,1.72264778,107980.0,107970.0,0.06613]
[1756522494186,0.87080778,107980.0,107970.0,0.06613]
[1756522494389,1.72252778,107980.0,107970.0,0.06613]
[1756522495587,1.7225676,107980.0,107970.0,0.06613]
[1756522496086,1.7224076,107980.0,107970.0,0.06613]
[1756522497888,1.3616076,107980.0,107970.0,0.06613]
[1756522498689,0.5100476,107980.0,107970.0,0.06613]
[1756522499090,1.3611276,107980.0,107970.0,0.06613]
[1756522499291,1.71914905,107980.0,107970.0,0.42409715]
[1756522500387,1.71914905,107980.0,107970.0,0.38538715]
[1756522500592,0.86806905,107980.0,107970.0,0.38538715]
[1756522500883,1.71914905,107980.0,107970.0,0.38538715]
[1756522504095,1.71914905,107980.0,107970.0,0.02742]
[1756522504395,1.71914905,107980.0,107970.0,0.38538715]
[1756522506488,0.06882,107970.0,107960.0,0.38746]
[1756522506696,0.44761931,107970.0,107960.0,0.78459715]
[1756522507697,0.04877216,107970.0,107960.0,1.3945643]
[1756522507987,0.04877216,107970.0,107960.0,0.7712436]
[1756522508194,0.08239703,107970.0,107960.0,1.4871779]
[1756522508594,0.12327703,107970.0,107960.0,1.4871779]
[1756522508794,0.12327703,107970.0,107960.0,2.2446043]
[1756522508993,0.48124418,107970.0,107960.0,1.3945643]
[1756522509384,0.12327703,107970.0,107960.0,1.03659172]
[1756522510597,0.12327703,107970.0,107960.0,0.67863]
[1756522510797,0.12327703,107970.0,107960.0,1.03659172]
[1756522516196,0.12327703,107970.0,107960.0,0.67863]
[1756522516402,0.12327703,107970.0,107960.0,1.03659172]
[1756522517702,0.12327703,107970.0,107960.0,0.67863]
[1756522518001,0.12327703,107970.0,107960.0,1.03659172]
[1756522519502,0.12327703,107970.0,107960.0,0.78659172]
[1756522521305,0.12327703,107970.0,107960.0,1.63663172]
[1756522521500,0.12327703,107970.0,107960.0,0.42863]
[1756522521705,0.12327703,107970.0,107960.0,0.78659172]
[1756522522200,0.05445703,107970.0,107960.0,0.78659172]
[1756522523601,0.05445703,107970.0,107960.0,0.42863]
[1756522523906,0.05445703,107970.0,107960.0,0.78659172]
[1756522524503,0.08239703,107970.0,107960.0,0.78659172]
[1756522525606,0.08239703,107970.0,107960.0,1.63659172]
[1756522526005,0.08239703,107970.0,107960.0,0.78659172]
[1756522526304,0.08239703,107970.0,107960.0,1.63659172]
[1756522526808,0.12327703,107970.0,107960.0,1.63659172]
[1756522527504,0.08239703,107970.0,107960.0,1.63659172]
[1756522528007,0.35821009,107980.0,107960.0,1.63659172]
[1756522528207,0.43710089,107980.0,107970.0,0.42663]
[1756522530805,0.4805708,107980.0,107970.0,0.06583]
[1756522531012,1.08853252,107980.0,107970.0,0.06583]
[1756522531407,1.44653628,107980.0,107970.0,0.06583]
[1756522533204,1.51929075,107980.0,107970.0,0.06583]
[1756522533405,1.51929075,107980.0,107970.0,0.02666]
[1756522533608,0.06783,107970.0,107960.0,0.42483274]
[1756522533807,0.44921066,107970.0,107960.0,0.42483274]
[1756522534009,0.44921066,107970.0,107960.0,0.06685]
[1756522534606,0.44921066,107970.0,107950.0,0.05997546]
[1756522534607,2.26795348,107970.0,107950.0,0.05997546]
[1756522534806,0.78379548,107960.0,107950.0,0.08595546]
[1756522535610,1.16798382,107960.0,107950.0,0.04508546]
[1756522536211,1.41798382,107960.0,107940.0,0.04087]
[1756522536412,0.91779,107950.0,107940.0,0.06685]
[1756522536612,1.29636433,107950.0,107940.0,0.06685]
[1756522537109,1.31973742,107950.0,107940.0,0.42483274]
[1756522537310,1.29654643,107950.0,107940.0,0.06685]
[1756522537717,1.29654643,107950.0,107940.0,0.06985]
[1756522538213,1.3199072,107950.0,107940.0,0.06985]
[1756522538419,0.93842159,107950.0,107940.0,0.06985]
[1756522538812,0.93842159,107950.0,107940.0,0.07385]
[1756522539311,0.08842159,107950.0,107940.0,0.07385]
[1756522539522,0.93842159,107950.0,107940.0,0.07385]
[1756522540120,0.08842159,107950.0,107940.0,0.07385]
[1756522540319,0.93842159,107950.0,107940.0,0.07385]
[1756522541123,1.29658643,107950.0,107940.0,0.07385]
[1756522543325,1.29662643,107950.0,107940.0,0.43465]
[1756522543526,0.93846159,107950.0,107940.0,0.43465]
[1756522543827,0.93846159,107950.0,107940.0,0.43201484]
[1756522544022,0.93846159,107950.0,107940.0,0.07385]
[1756522544222,1.29662643,107950.0,107940.0,0.43465]
[1756522544726,0.08842159,107950.0,107940.0,0.43465]
[1756522544925,1.29662643,107950.0,107940.0,0.43465]
[1756522545927,0.44658643,107950.0,107940.0,0.43465]
[1756522546131,1.29662643,107950.0,107940.0,0.43465]
[1756522548336,1.29662643,107950.0,107940.0,0.79281484]
[1756522548537,0.44658643,107950.0,107940.0,0.79281484]
[1756522548739,1.29666643,107950.0,107940.0,0.79281484]
[1756522549437,1.29666643,107950.0,107940.0,0.43465]
[1756522550940,0.93850159,107950.0,107940.0,0.79281484]
[1756522551144,0.93850159,107950.0,107940.0,0.43465]
[1756522551436,0.93850159,107950.0,107940.0,0.79281484]
[1756522552339,0.93850159,107950.0,107940.0,0.43465]
[1756522552539,0.93850159,107950.0,107940.0,0.79281484]
[1756522554139,1.29666643,107950.0,107940.0,0.79281484]
[1756522554341,0.44658643,107950.0,107940.0,0.79281484]
[1756522554542,0.93846159,107950.0,107940.0,0.79281484]
[1756522555642,1.29662643,107950.0,107940.0,0.79281484]
[1756522559345,1.29659248,107950.0,107940.0,0.79278089]
[1756522560646,0.89661159,107950.0,107940.0,1.40091178]
[1756522561340,0.08841159,107950.0,107940.0,1.40091178]
[1756522562941,0.02059159,107950.0,107940.0,1.49354208]
[1756522564238,0.02059159,107950.0,107940.0,2.34354208]
[1756522565645,0.02059159,107950.0,107940.0,2.70167297]
[1756522566343,0.02059159,107950.0,107940.0,2.70163297]
[1756522566548,0.02059159,107950.0,107940.0,1.49354208]
[1756522566750,0.02059159,107950.0,107940.0,2.34350208]
[1756522573055,0.02059159,107950.0,107940.0,2.70163297]
[1756522574356,0.02059159,107950.0,107940.0,2.70147297]
[1756522586955,0.02755,107970.0,107960.0,0.068]
[1756522587156,0.16308014,107980.0,107970.0,0.04256]
[1756522587359,0.21399094,107980.0,107970.0,0.42613089]
[1756522587862,0.21399094,107980.0,107970.0,0.78693089]
[1756522589263,0.01538146,107980.0,107970.0,0.78693089]
[1756522590159,0.01538146,107980.0,107970.0,1.14506178]
[1756522590364,0.38090426,107990.0,107980.0,0.068]
[1756522590565,0.38090426,107990.0,107980.0,0.78426178]
[1756522590863,0.38090426,107990.0,107980.0,1.14506178]
[1756522591561,0.42798764,107990.0,107980.0,1.14506178]
[1756522592064,0.67798764,107990.0,107980.0,1.14506178]
[1756522593466,0.42798764,107990.0,107980.0,1.99446178]
[1756522593864,0.78611853,107990.0,107980.0,1.99446178]
[1756522594256,0.42798764,107990.0,107980.0,1.99446178]
[1756522594966,0.42798764,107990.0,107980.0,1.99546178]
[1756522596872,0.42798764,107990.0,107980.0,1.99646178]
[1756522597064,0.42798764,107990.0,107980.0,2.08905778]
[1756522601166,0.42798764,107990.0,107980.0,2.33905778]
[1756522604175,0.06731978,107990.0,107980.0,2.33905778]
[1756522608179,0.06731978,107990.0,107980.0,1.622436]
[1756522608378,0.06731978,107990.0,107980.0,1.48965778]
[1756522608580,0.06731978,107990.0,107980.0,2.33869778]
[1756522612477,0.06731978,107990.0,107980.0,1.48965778]
[1756522612678,0.06731978,107990.0,107980.0,2.33857778]
[1756522612976,0.06731978,107990.0,107980.0,1.48965778]
[1756522613278,0.06731978,107990.0,107980.0,2.33857778]
[1756522619185,0.06731978,107990.0,107980.0,2.08857778]
[1756522620386,0.06731978,107990.0,107980.0,2.08845778]
[1756522622387,0.06731978,107990.0,107980.0,1.23965778]
[1756522622588,0.06731978,107990.0,107980.0,2.08841778]
[1756522626300,0.06731978,107990.0,107980.0,1.23965778]
[1756522626501,0.06731978,107990.0,107980.0,2.08833778]
[1756522635616,0.03826,108010.0,107990.0,0.04086]
[1756522635910,0.18890862,108010.0,108000.0,1.14562178]
[1756522636299,0.71893089,108020.0,108000.0,1.95328178]
[1756522636504,0.81893089,108020.0,108010.0,0.42669089]
[1756522636707,0.70813089,108020.0,108010.0,0.42669089]
[1756522636910,0.45813089,108020.0,108010.0,0.42669089]
[1756522637605,0.81626178,108020.0,108010.0,0.42669089]
[1756522637811,0.46113089,108020.0,108010.0,0.42669089]
[1756522638208,0.14921316,108020.0,108010.0,0.42669089]
[1756522638405,0.50734405,108020.0,108010.0,0.42669089]
[1756522638615,0.50734405,108020.0,108010.0,0.78749089]
[1756522639306,0.14921316,108020.0,108010.0,0.78749089]
[1756522639510,0.50734405,108020.0,108010.0,0.78749089]
[1756522639710,0.51034405,108020.0,108010.0,0.78749089]
[1756522640314,0.50934405,108020.0,108010.0,0.78749089]
[1756522640511,0.50634405,108020.0,108010.0,0.78749089]
[1756522640712,0.50834405,108020.0,108010.0,0.42936]
[1756522640913,0.15021316,108020.0,108010.0,0.78749089]
[1756522641315,0.14821316,108020.0,108010.0,0.78749089]
[1756522641614,0.15021316,108020.0,108010.0,0.78749089]
[1756522642213,0.50834405,108020.0,108010.0,0.78749089]
[1756522642818,0.15021316,108020.0,108010.0,0.78749089]
[1756522644618,0.14921316,108020.0,108010.0,0.78749089]